Cogmind - Beta 13 @@@ ROGUE MODE // 2024.04.05 @ 11:48:22 Player: Astrozal Result: Destroyed by H-61 Shepherd with Heavy Assault Cannon Performance ------------- Evolutions (2) 1000 Regions Visited (4) 800 Robots Destroyed (65) 325 Value Destroyed (2214) 2214 Prototype IDs (4) 80 Alien Tech Used (0) 0 Bonus (150) 150 TOTAL SCORE: 4569 Bonus ------- High Alert Combat Kills 89 Follower Combat Kills 83 Friendly Fire -22 Cogmind --------- Core Integrity 0/550 Matter 290/300 Energy 2/240 System Corruption 1% Temperature Cool (0) Movement Core (100) Ox1 Location -8/Materials Parts ------- > --- POWER (1) -------- Nuclear Core > --- PROPULSION (4) --- (None) > --- UTILITY (4) ------ Medium Storage Unit Advanced Weight Redist. System Targeting Computer > --- WEAPON (2) ------- EMP Blaster > --- INVENTORY (10) --- Light Nuclear Core Light Nuclear Core Light Nuclear Core Wheel Katana Peak State ------------ > --- POWER ------------ Nuclear Core > --- PROPULSION ------- Light Treads Light Treads Armored Treads Armored Treads > --- UTILITY ---------- Medium Storage Unit Advanced Weight Redist. System Targeting Computer Hardened Medium Armor Plating > --- WEAPON ----------- Heavy Laser Gauss Rifle > --- INVENTORY -------- Light Nuclear Core Light Nuclear Core Light Nuclear Core Light Treads Light Treads Wheel Compact Matter Pod Heavy Assault Rifle EMP Blaster Grenade Launcher [Rating: 29] Favorites ----------- Power Light Nuclear Core Engine Light Ion Engine Power Core Light Nuclear Core Propulsion Light Treads Treads Light Treads Utility Small Storage Unit Device Advanced Weight Redist. System Storage Small Storage Unit Processor Targeting Computer Protection Medium Armor Plating Weapon Assault Rifle Energy Gun Heavy EM Pulse Gun Ballistic Gun Assault Rifle Launcher Grenade Launcher Build | -11 -10 -10 -9 -8 ------- Run | Yrd Mat Min Mat Mat Slots Evolved 4 | . . . 2 2 Power . | . . . . . Propulsion 2 | . . . . 2 Utility 2 | . . . 2 . Weapon . | . . . . . Parts Attached 74 | 7 3 2 33 29 Power 13 | 1 . . 6 6 Engine 4 | 1 . . 2 1 Core 9 | . . . 4 5 Reactor . | . . . . . Propulsion 14 | 2 . . 7 5 Treads 14 | 2 . . 7 5 Leg . | . . . . . Wheel . | . . . . . Hover . | . . . . . Flight . | . . . . . Utility 17 | 2 . . 9 6 Device 5 | 1 . . 3 1 Storage 4 | 1 . . . 3 Processor 2 | . . . 1 1 Hackware . | . . . . . Protection 6 | . . . 5 1 Artifact . | . . . . . Weapon 30 | 2 3 2 11 12 Energy Gun 4 | . 1 . . 3 Energy Cannon . | . . . . . Ballistic Gun 15 | 2 1 1 8 3 Ballistic Cannon . | . . . . . Launcher 11 | . 1 1 3 6 Special Weapon . | . . . . . Impact Weapon . | . . . . . Slashing Weapon . | . . . . . Piercing Weapon . | . . . . . Special Melee Weapon . | . . . . . Unidentified Prototypes . | . . . . . Parts Lost 23 | . . . 6 17 Power 3 | . . . 1 2 Propulsion 7 | . . . . 7 Utility 7 | . . . 3 4 Weapon 6 | . . . 2 4 Highest Loss Streak 9 | . . . 2 9 To Critical Strikes . | . . . . . Average Slot Usage (%) 98 | . 100 100 97 98 Engine 4 | . 14 14 1 2 Core 5 | . . . 8 6 Treads 28 | . 28 28 22 35 Device 15 | . 14 14 18 12 Storage 11 | . 14 14 11 11 Processor 3 | . . . 3 5 Protection 6 | . . . 10 6 Energy Gun 5 | . 8 14 2 3 Ballistic Gun 14 | . 17 12 18 12 Launcher 1 | . 1 1 1 1 Naked Turns . | . . . . . Heaviest Build 35 | 13 15 16 24 35 Greatest Support 89 | 40 40 40 49 89 Greatest Overweight (x) 6 | . . . . 6 Average Overweight (x) . | . . . . . Largest Inventory Capacity 10 | 8 8 8 8 10 Average Capacity 8 | 7 8 8 8 8 Most Carried 10 | 5 8 8 8 10 Average Carried 7 | 3 7 7 7 7 Final Capacity 10 | 8 8 8 8 10 Final Carried 8 | 5 8 8 8 5 Class Distribution -------------------- 79% | Mutant 20% | Scavenger-Mutant Dominant Class ---------------- Mutant | -10/Materials Mutant | -10/Mines Mutant | -9/Materials Scavenger-Mutant | -8/Materials Resources | -11 -10 -10 -9 -8 ----------- Run | Yrd Mat Min Mat Mat Matter Collected 1962 | 288 21 11 809 833 Remotely 855 | 74 21 11 749 . Salvage Created 2522 | 86 21 17 961 1437 Parts 127 | 1 2 3 52 69 Haulers Intercepted 1 | . . . . 1 Recyclers Shooed 1 | . . . 1 . Parts Field Recycled . | . . . . . Retrieved Matter . | . . . . . Parts Self-Destructed . | . . . . . Prevented . | . . . . . Kills | -11 -10 -10 -9 -8 ------- Run | Yrd Mat Min Mat Mat Combat Hostiles Destroyed 53 | . 3 3 22 25 Guns 40 | . 1 1 17 21 AOE 13 | . 2 2 5 4 Classes Destroyed 11 | 1 1 1 3 5 Worker 2 | . . 1 . 1 Builder 1 | . . . . 1 Hauler 1 | . . . . 1 Recycler 5 | 1 . . 1 3 Operator 1 | . . . . 1 Watcher 2 | . . . 1 1 Swarmer 8 | . 3 3 . 2 Grunt 33 | . . . 20 13 Sentry 5 | . . . 2 3 Specialist 6 | . . . . 6 Hunter 1 | . . . . 1 Best Kill Streak 6 | 1 3 4 5 6 Combat Bots Only 5 | . 3 3 5 3 Max Kills in Single Turn 4 | 1 2 3 2 4 Gunslinging . | . . . . . Exploded 2 | . 2 2 2 2 Melee . | . . . . . Uniques/NPCs Destroyed . | . . . . . Combat | -11 -10 -10 -9 -8 -------- Run | Yrd Mat Min Mat Mat Hostile Shots Fired 342 | . 4 8 133 197 Missed 90 | . 2 2 31 55 Damage Taken 4211 | . 19 102 1408 2682 Core 800 | . . 6 213 581 Absorbed by Shields 122 | . . . . 122 Redirected to Shielding 15 | . . . 15 . Ignored by Resistances 12 | . . . 12 . Core Remaining (%) 81 | 100 . 97 46 . Volleys Fired 167 | 3 2 2 79 81 Largest 2 | 2 2 2 2 2 Hottest 97 | 40 75 78 78 97 Shots Fired 314 | 6 3 4 150 151 Gun 300 | 6 2 2 145 145 Cannon . | . . . . . Launcher 14 | . 1 2 5 6 Special . | . . . . . Kinetic 234 | 6 . . 135 93 Thermal 52 | . . . . 52 Explosive 10 | . 1 2 5 2 Electromagnetic 18 | . 2 2 10 4 Robot Hit Streak 8 | 4 7 1 7 8 Robot Miss Streak 5 | 1 . 2 5 3 Penetration Max 1 | . . . . 1 Secondary Targets 6 | . . . 2 4 Max Gunslinging Chain 1 | . . . 1 1 Shots Hit Robots 211 | 4 3 1 98 105 Core Hits 132 | 2 6 6 43 75 Critical Kills 1 | . . . . 1 Critical Parts Destroyed 1 | . . . 1 . Critical Strikes 4 | . . 1 2 1 Destroy 3 | . . . 2 1 Corrupt 1 | . . 1 . . Melee Attacks . | . . . . . Impact . | . . . . . Slashing . | . . . . . Piercing . | . . . . . Sneak Attacks . | . . . . . Combat Hostiles . | . . . . . Follow-up Attacks . | . . . . . Damage Inflicted 4502 | 52 129 207 1853 2261 Guns 3268 | 52 26 30 1372 1788 Cannons . | . . . . . Explosions 1199 | . 103 171 464 461 Melee . | . . . . . Ramming 35 | . . 6 17 12 Kinetic 2329 | 52 . . 1278 999 Thermal 838 | . . . . 838 Explosive 964 | . 103 171 464 226 Electromagnetic 336 | . 26 30 94 186 Impact . | . . . . . Slashing . | . . . . . Piercing . | . . . . . Highest Corruption 1 | . . . 1 1 Average Corruption 1 | . . . 1 1 Corruption Purged . | . . . . . Corruption Blocked . | . . . . . Effects 10 | . . . 5 5 Message Errors 2 | . . . 1 1 Matter Fused 1 | . . . . 1 Heat Flow Errors 3 | . . . 2 1 Energy Discharges 2 | . . . 1 1 Alerts 2 | . . . 1 1 Overload Shots . | . . . . . Overflow Damage 26 | . . . 3 23 Projectiles . | . . . . . Explosions 26 | . . . 3 23 Melee . | . . . . . Knockbacks . | . . . . . Impact . | . . . . . Kinetic . | . . . . . Secondary . | . . . . . Self-Inflicted Damage 294 | . . 54 72 168 Shots 11 | . . 2 2 7 Rammed 10 | . . 2 5 3 Targets Rammed 11 | . . 2 5 4 Kicked . | . . . . . Crushed 1 | . . . . 1 Highest Temperature 512 | . 19 36 198 512 Average Temperature 121 | . 11 20 45 159 Received Heat Transfer 1284 | . . . 645 639 Effects 17 | . . . . 17 Shutdowns 4 | . . . . 4 Energy Bleed 2 | . . . . 2 Interference 6 | . . . . 6 Matter Decay 2 | . . . . 2 Short Circuit 1 | . . . . 1 Damage (core) 2 | . . . . 2 Siege Activations . | . . . . . Robots Corrupted . | . . . . . Combat Hostiles . | . . . . . Parts Fried . | . . . . . Impact Corruptions . | . . . . . Robots Melted . | . . . . . Combat Hostiles . | . . . . . Parts Melted 1 | . . . . 1 Heat Transferred 1403 | . . . . 1403 Parts Sabotaged . | . . . . . Parts Stolen . | . . . . . Parts Stripped . | . . . . . Power Chain Reactions 2 | . . . . 2 Alert | -11 -10 -10 -9 -8 ------- Run | Yrd Mat Min Mat Mat Peak Influence 578 | 5 100 136 340 578 Initial 84 | . 3 39 . 84 Average 192 | 1 32 47 183 331 Maximum Alert Level 2 | . . . 1 2 Low Security (%) 58 | 100 100 100 55 26 Level 1 28 | . . . 44 35 Level 2 12 | . . . . 37 Level 3 . | . . . . . Level 4 . | . . . . . Level 5 . | . . . . . High Security . | . . . . . Max Security . | . . . . . Squads Dispatched 13 | . . . 4 9 Investigation 3 | . . . 2 1 Extermination . | . . . . . Reinforcement 7 | . . . 2 5 Assault . | . . . . . Garrison 3 | . . . . 3 Intercept . | . . . . . Searches Triggered . | . . . . . Construction Impeded 1 | . . . 1 . Haulers Reinforced . | . . . . . Active Scanning Responses . | . . . . . Cargo Convoy Interrupts . | . . . . . Stealth | -11 -10 -10 -9 -8 --------- Run | Yrd Mat Min Mat Mat Distress Signals 10 | . 1 . 1 8 Communications Jammed . | . . . . . Distress Signals . | . . . . . Times Spotted 82 | . 6 3 37 36 Peak Tracking Total 5 | . 5 3 5 5 Tactical Retreats 2 | . . . . 2 Traps | -11 -10 -10 -9 -8 ------- Run | Yrd Mat Min Mat Mat Traps Triggered 2 | . . . 2 . Indirectly . | . . . . . Trap Hack Attempts . | . . . . . Triggered . | . . . . . Disarmed . | . . . . . Reprogrammed . | . . . . . Reused . | . . . . . Traps Extracted . | . . . . . Installed . | . . . . . Triggered . | . . . . . Machines | -11 -10 -10 -9 -8 ---------- Run | Yrd Mat Min Mat Mat Machines Disabled 5 | . . . 2 3 Max in Single Turn 2 | . . . 1 2 Machines Repaired . | . . . . . Machines Dismantled . | . . . . . Machines Sabotaged . | . . . . . Overloaded Fab Kills . | . . . . . Hacking | -11 -10 -10 -9 -8 --------- Run | Yrd Mat Min Mat Mat Machines Accessed 14 | . 2 . 7 5 Terminals 12 | . 2 . 5 5 Fabricators . | . . . . . Repair Stations . | . . . . . Recycling Units 1 | . . . 1 . Scanalyzers 1 | . . . 1 . Garrison Access . | . . . . . Total Hacks 41 | . 3 . 21 17 Successful 24 | . 2 . 14 8 Failed 17 | . 1 . 7 9 Catastrophic 6 | . . . 2 4 Database Lockouts . | . . . . . Manual 4 | . . . . 4 Terminals 35 | . 3 . 15 17 Fabricators . | . . . . . Repair Stations . | . . . . . Recycling Units 3 | . . . 3 . Scanalyzers 3 | . . . 3 . Garrison Access . | . . . . . Terminal Hacks 19 | . 2 . 9 8 Record 8 | . . . 5 3 Robot Analysis 1 | . . . 1 . Prototype ID Bank 2 | . 1 . . 1 Repair Station Index 1 | . . . . 1 Locate Traps 2 | . . . 1 1 Recall Investigation 1 | . . . . 1 Hauler Manifests 2 | . 1 . 1 . Zone Layout 2 | . . . 1 1 Fabricator Hacks . | . . . . . Repair Station Hacks . | . . . . . Recycling Unit Hacks 2 | . . . 2 . Report Inventory 1 | . . . 1 . Retrieve Components 1 | . . . 1 . Scanalyzer 3 | . . . 3 . Insert Component 1 | . . . 1 . Analyze 2 | . . . 2 . Garrison Access Hacks . | . . . . . Unauthorized Hacks . | . . . . . Terminals . | . . . . . Fabricators . | . . . . . Repair Stations . | . . . . . Recycling Units . | . . . . . Scanalyzers . | . . . . . Garrison Access . | . . . . . Data Cores Recovered 1 | . . . . 1 Used 1 | . . . . 1 Hacking Detections 10 | . 1 . 4 5 Full Trace Events 4 | . . . 2 2 Feedback Events . | . . . . . Feedback Blocked . | . . . . . Robot Schematics Acquired . | . . . . . Robots Built . | . . . . . Authchips . | . . . . . Time . | . . . . . Total Robot Build Rating . | . . . . . Part Schematics Acquired 1 | . . . 1 . Parts Built . | . . . . . Authchips . | . . . . . Time . | . . . . . Total Part Build Rating . | . . . . . Parts Repaired . | . . . . . Time . | . . . . . Parts Recycled . | . . . . . Recycled Matter . | . . . . . Retrieved Matter . | . . . . . Retrieved Components 3 | . . . 3 . Parts Scanalyzed 1 | . . . 1 . Part Schematics Acquired 1 | . . . 1 . Parts Damaged . | . . . . . Bothacking | -11 -10 -10 -9 -8 ------------ Run | Yrd Mat Min Mat Mat Used RIF Installer . | . . . . . Robots Hacked . | . . . . . Non-combat . | . . . . . Combat . | . . . . . Robot Hacks Applied . | . . . . . Relay Couplers Released . | . . . . . Fabnet Peak Effective % . | . . . . . Robots Rewired . | . . . . . Allies Hacked . | . . . . . Hacks Repelled . | . . . . . Allies | -11 -10 -10 -9 -8 -------- Run | Yrd Mat Min Mat Mat Total Allies 3 | . . 3 . . Largest Group 3 | . . 3 3 . Highest-Rated Group 40 | . . 40 40 . Highest-Rated Ally 16 | . . 16 16 . Total Orders 3 | . . . 3 . ROAM 1 | . . . 1 . GUARD 1 | . . . 1 . AID 1 | . . . 1 . Ally Attacks 30 | . . . 30 . Total Damage 313 | . . . 313 . Kills 3 | . . . 3 . Allies Corrupted . | . . . . . Allies Melted . | . . . . . Intel | -11 -10 -10 -9 -8 ------- Run | Yrd Mat Min Mat Mat Robot Analysis Total 1 | . . . 1 . Derelict Logs Recovered 1 | . . 1 . . Drone Launches . | . . . . . Drone Recoveries . | . . . . . Exploration | -11 -10 -10 -9 -8 ------------- Run | Yrd Mat Min Mat Mat Turns Passed 3437 | 189 229 561 1284 1174 Spaces Moved 1711 | 105 135 343 587 541 Core 4 | 3 . . . 1 Treads 1707 | 102 135 343 587 540 Legs . | . . . . . Wheels . | . . . . . Hover . | . . . . . Flight . | . . . . . Fastest Speed 50 | 50 160 160 160 160 Average Speed 163 | 156 160 160 166 164 Slowest Speed 350 | 160 160 160 170 350 Overloaded Moves . | . . . . . Propulsion Burnouts . | . . . . . Robots Hopped . | . . . . . Cave-ins Triggered . | . . . . . Exploration Rate (%) 34 | 5 30 66 44 27 Regions Visited 4 Branch Regions 1 Pre-discovered Areas . | . . . . . Known Exits Taken . | . . . . . Unknown Exits Taken 4 | 1 1 1 1 . Scrap Searched . | . . . . . Spaces Dug . | . . . . . Terrain Destroyed 56 | . 2 23 22 9 Melee . | . . . . . Projectile . | . . . . . AOE 56 | . 2 23 22 9 Terrain Rammed . | . . . . . Walls Destroyed . | . . . . . Machines Disabled . | . . . . . Actions | -11 -10 -10 -9 -8 --------- Run | Yrd Mat Min Mat Mat Total 2022 | 120 144 350 739 669 Wait 2 | 1 . . 1 . Move 1707 | 104 134 342 586 541 Hop . | . . . . . Pick Up 33 | 5 4 1 14 9 Fast Attach 12 | 7 . . 4 1 Attach 23 | . . . 10 13 Detach 1 | . . . 1 . Swap 39 | . 3 2 19 15 Drop 27 | . 1 1 20 5 Fire 167 | 3 2 2 79 81 Melee . | . . . . . Ram . | . . . . . Kick . | . . . . . Crush 11 | . . 2 5 4 Escape Stasis . | . . . . . Rewire . | . . . . . Trap . | . . . . . Miscellaneous . | . . . . . Route ------- -11/Scrapyard -10/Materials -10/Mines -9/Materials -8/Materials History --------- Turn | Location | Event 20 | -11/Scrapyard | Discovered new exit (range 16) 190 | -11/Scrapyard | Entered Materials 312 | -10/Materials | Build established: Mutant 387 | -10/Materials | Discovered new exit (range 10) 419 | -10/Materials | Entered Mines 482 | -10/Mines | Discovered new exit (range 4) 591 | -10/Mines | Received a Rocket Launcher from a helpful Derelict 621 | -10/Mines | Learned Materials terminal intel 832 | -10/Mines | Assisted by bots powering up and referring to "LRC-V3" 980 | -10/Mines | Entered Materials 980 | -9/Materials | Accompanied by 3 allies 980 | -9/Materials | Evolved 2 slots: Utility x2 981 | -9/Materials | Loaded intel: 12 terminal locations 2258 | -9/Materials | Discovered new exit (range 3) 2261 | -9/Materials | Core integrity fell below 50% 2264 | -9/Materials | Entered another Materials area 2264 | -8/Materials | Evolved 2 slots: Propulsion x2 3023 | -8/Materials | Build established: Scavenger-Mutant 3054 | -8/Materials | Garrison activated, responded to threat 3091 | -8/Materials | Core integrity fell below 50% 3431 | -8/Materials | Core integrity fell below 20% 3438 | -8/Materials | Destroyed by H-61 Shepherd with Heavy Assault Cannon Last Messages --------------- Penetrated by Slug. Lgt. Treads destroyed. Slug penetrates Wall. H-61 Shepherd calls for reinforcements. ALERT: Hostile activity reported, dispatching reinforcements to area. Hvy. Assault Rifle destroyed. Arm. Treads destroyed. Penetrated by Slug. Slug penetrates H-61 Shepherd. Lgt. Treads destroyed. Slug penetrates Wall. Gauss Rifle destroyed. Deuterium Engine destroyed. Penetrated by Slug. Grenade Launcher destroyed. Lgt. Treads destroyed. Penetrated by Slug. Com. Matter Pod destroyed. G-47 Trooper IFF system glitched. Map ----- +----------------------------------------------------+ | | | ?????????????????????????????????????????????????? | | ?????????????????????????????????????????????????# | | ?????????????????????????????????????????????????# | | ?????????????????????????????????????????????????# | | ??????????????????????????????????????????######## | | ??????????????????????????????????????????# """ # | | ??????????????????????????????????????????# "T" # | | ??????????????????????????????????????????# # | | ??????????????????????????????????????????# + | | ????????????????????????? ??????????????# # | | ????????????????????????? #?????????????# =# | | ???????????????????????## ## ##########+# | | ????????????????######## # # ## =! | | ????????????????# k # """ # ## != | | ????????????????# + """"" # ## ## | | ????????????????# gHg # """"" # """ ## #? | | ????????????????# #### # """"" # """ ## #? | | ????????????????# #??## ## """ # """ ## #? | | ????????????????# #???# ## # ## ## | | ????????????????# #???# ## # """ # # | | ???????????????? #???# ########### """ + # | | ???????????????? #???# ##????????# """ # + | | ???????????????? #???# k;#????????# # % # | | ????????????????# #???# %#?????????# ## ## | | ????????????????# #???#@ ################## #? | | ????????????????# #???# %## # + #? | | ????????????????# #???#%% ## T #! # #? | | ????????????????# #???#% ## """ #!! # #? | | ????????????????# #???# ## """ #!! # #? | | ????????????????# #???; %## """ # # #? | | ????????????????# #???;% ## ! # # #? | | ????????????????# #???# ## ![ # # #? | | ????????????????# #??## % ## !=%%* ##### # #? | | ????????????????+ #??# #####+############ #? | | ????????????????# #??# % % ^""" ##??# #? | | ????????????????# #??# % ^ " ##??# #? | | ????????????????# #??# ##??# #? | | ????????????????# #??# ###### %%###?# #? | | ????????????????# #??## ##????# ""#?# #? | | ????????????????# #???# #?????# %T"#?# #? | | ????????????????# #???# #?????#^ " %% ""#?# #? | | ???????????????? #???# #?????# """ ###?# ## | | ????????????????????????# #?????# "" !##### | | ????????????????????????# #?????# """ | | ????????????????????????# #?????# T | | ????????????????????????# #?????# | | ????????????????????????# #?????# ####### ] | | ????????????????????????# #?????## ######### | | ???????????????????????? #??????# ## # | +----------------------------------------------------+ Best States ------------- Heat Dissipation 31 Energy Generation 14 Energy Capacity 275 Matter Stores 450 Matter Capacity 450 Sight Range 16 Terrain Scan Density 10 Additional Mass Support 9 Armor Coverage 225 Resistance: TH 10 Utility Shielding 33 Evasion (%) 40 Targeting Accuracy 5 Recoil Reduction 4 Item Schematics ----------------- Arm. Treads | -9/Materials | Scanalyzed Robot Schematics ------------------ None Fabricated ------------ Nothing Alien Tech Used ----------------- None Achievements -------------- Dynamic Key Challenges ------------ None Game ------ Seed BombBombBeamcaster Manual? 0 Play Time 00:50:01 Cumulative 8.5 hours Start 2024.04.05 @ 10:59:17 End 2024.04.05 @ 11:48:22 Sessions 1 Manual Loads 0 Difficulty Rogue Special Mode None Game No. 14 Rogue 14 Adventurer 0 Explorer 0 Win Type - Total 0 Types 0/0/0/0/0/0/0/0/0 Lore% 6 Gallery% 13 Achievement% 14 Wizard Run 0 Options --------- Layout 1 ASCII 1 Keyboard 0 Movement Arrows Keybinds 0 Fullscreen 1 Font 16/Terminus Map View 50x40 Zoom Use 0% Tactical HUD 0 Map Filters NONE Filters NONE Steam SD RUN: 2bc508b0-3b70-4333-8490-78d7273c41ac